fUSD/lending_fUSD_20240325
["ID","MTS","AMOUNT","RATE_DAILY","PERIOD"]
[320526305,1711410646912,-658.64,0.00052054,120]
[320526306,1711410646922,-2044.12,0.00052054,120]
[320526307,1711410646933,-1978.2,0.00052054,120]
[320526308,1711410646943,-500.0,0.00052054,120]
[320526309,1711410646956,-747.77,0.00052054,120]
[320526310,1711410646967,-500.0,0.00052054,120]
[320526311,1711410646978,-500.0,0.00052054,120]
[320526312,1711410646990,-500.0,0.00052054,120]
[320526313,1711410647001,-500.0,0.00052054,120]
[320526314,1711410647012,-1450.42,0.00052054,120]
[320526315,1711410647024,-2149.77,0.00052054,120]
[320526316,1711410647038,-564.24,0.00052054,120]
[320526317,1711410647049,-1654.16,0.00052054,120]
[320526318,1711410647060,-1024.12,0.00052054,120]
[320526319,1711410647070,-500.0,0.00052054,120]
[320526320,1711410647081,-951.85,0.00052054,120]
[320526321,1711410647091,-1760.27,0.00052054,120]
[320526322,1711410647103,-819.66,0.00052054,120]
[320526323,1711410647117,-1153.1,0.00052054,120]
[320526324,1711410647129,-1384.17,0.00052054,120]
[320526325,1711410647140,-2911.71,0.00052054,120]
[320526326,1711410647152,-597.3,0.00052054,120]
[320526327,1711410647171,-1149.51,0.00052054,120]
[320526328,1711410647187,-1237.7,0.00052054,120]
[320526329,1711410647197,-500.0,0.00052054,120]
[320526330,1711410647207,-1394.81,0.00052054,120]
[320526331,1711410647218,-1317.11,0.00052054,120]
[320526332,1711410647231,-1512.88,0.00052054,120]
[320526333,1711410647243,-500.0,0.00052054,120]
[320526334,1711410647256,-1216.34,0.00052054,120]
[320526335,1711410647268,-1114.39,0.00052054,120]
[320526336,1711410647280,-500.0,0.00052054,120]
[320526337,1711410647292,-500.0,0.00052054,120]
[320526338,1711410647302,-537.8,0.00052054,120]
[320526339,1711410647312,-2669.39,0.00052054,120]
[320526340,1711410647323,-1868.74,0.00052054,120]
[320526341,1711410647334,-1994.3,0.00052054,120]
[320526342,1711410647345,-503.88037302,0.00052054,120]
[320526343,1711410647356,-1459.94,0.00052054,120]
[320526344,1711410647367,-500.0,0.00052054,120]
[320526345,1711410647379,-500.0,0.00052054,120]
[320526346,1711410647390,-1622.46,0.00052054,120]
[320526347,1711410647401,-697.57,0.00052054,120]
[320526348,1711410647412,-500.0,0.00052054,120]
[320526349,1711410647424,-500.0,0.00052054,120]
[320526350,1711410647435,-959.63,0.00052054,120]
[320526351,1711410647445,-601.09,0.00052054,120]
[320526352,1711410647455,-500.0,0.00052054,120]
[320526353,1711410647465,-1705.04,0.00052054,120]
[320526354,1711410647475,-500.0,0.00052054,120]
[320526355,1711410647486,-2970.32,0.00052054,120]
[320526356,1711410647497,-500.0,0.00052054,120]
[320526357,1711410647507,-500.0,0.00052054,120]
[320526358,1711410647518,-587.12,0.00052054,120]
[320526359,1711410647528,-1204.69,0.00052054,120]
[320526360,1711410647541,-2231.25,0.00052054,120]
[320526361,1711410647552,-500.0,0.00052054,120]
[320526362,1711410647562,-591.539819,0.00052054,120]
[320526363,1711410647573,-500.0,0.00052054,120]
[320526364,1711410647587,-500.0,0.00052054,120]
[320526365,1711410647599,-1464.18,0.00052054,120]
[320526366,1711410647609,-887.74,0.00052054,120]
[320526367,1711410647622,-1033.47,0.00052054,120]
[320526368,1711410647635,-500.0,0.00052054,120]
[320526369,1711410647646,-500.0,0.00052054,120]
[320526370,1711410647657,-1361.97,0.00052054,120]
[320526371,1711410647669,-500.0,0.00052054,120]
[320526372,1711410647679,-573.38,0.00052054,120]
[320526373,1711410647693,-500.0,0.00052054,120]
[320526374,1711410647705,-500.0,0.00052054,120]
[320526375,1711410647715,-500.0,0.00052054,120]
[320526376,1711410647925,-500.0,0.00052054,120]
[320526377,1711410647936,-500.0,0.00052054,120]
[320526378,1711410647947,-581.66,0.00052054,60]
[320526379,1711410647957,-500.0,0.00052054,120]
[320526380,1711410647968,-500.0,0.00052054,120]
[320526381,1711410647979,-500.0,0.00052054,120]
[320526382,1711410647990,-500.0,0.00052054,120]
[320526383,1711410648001,-1315.18,0.00052054,120]
[320526384,1711410648012,-979.48,0.00052054,120]
[320526385,1711410648024,-2000.0,0.00052054,15]
[320526386,1711410648039,-500.0,0.00052054,120]
[320526387,1711410648051,-500.0,0.00052054,120]
[320526388,1711410648062,-500.0,0.00052054,120]
[320526389,1711410648071,-500.0,0.00052054,120]
[320526390,1711410648080,-500.0,0.00052054,120]
[320526391,1711410648090,-1419.21,0.00052054,120]
[320526392,1711410648100,-656.78,0.00052054,120]
[320526393,1711410648110,-801.04,0.00052054,120]
[320526394,1711410648120,-1286.89,0.00052054,120]
[320526395,1711410648131,-500.0,0.00052054,120]
[320526396,1711410648141,-1286.3,0.00052054,120]
[320526397,1711410648154,-500.0,0.00052054,120]
[320526398,1711410648164,-758.59,0.00052054,120]
[320526399,1711410648175,-500.0,0.00052054,120]
[320526400,1711410648186,-500.0,0.00052054,120]
[320526401,1711410648198,-1784.76,0.00052054,120]
[320526402,1711410648209,-500.0,0.00052054,120]
[320526403,1711410648220,-1575.92,0.00052054,120]
[320526404,1711410648230,-1000.0,0.00052054,120]
[320526405,1711410648240,-2171.29,0.00052054,120]
[320526406,1711410648250,-1855.87,0.00052054,30]
[320526407,1711410648260,-500.0,0.00052054,120]
[320526408,1711410648270,-500.0,0.00052054,120]
[320526409,1711410648279,-1680.42,0.00052054,120]
[320526410,1711410648292,-1174.1,0.00052054,120]
[320526411,1711410648301,-1357.34,0.00052054,120]
[320526412,1711410648310,-500.0,0.00052054,120]
[320526413,1711410648319,-500.0,0.00052054,120]
[320526414,1711410648329,-1325.32,0.00052054,120]
[320526415,1711410648338,-500.0,0.00052054,120]
[320526416,1711410648347,-500.0,0.00052054,120]
[320526417,1711410648356,-500.0,0.00052054,120]
[320526418,1711410648367,-500.0,0.00052054,120]
[320526419,1711410648376,-500.0,0.00052054,120]
[320526420,1711410648385,-1460.37,0.00052054,120]
[320526421,1711410648395,-544.19,0.00052054,120]
[320526422,1711410648404,-500.0,0.00052054,120]
[320526423,1711410648413,-500.0,0.00052054,120]
[320526424,1711410648423,-500.0,0.00052054,120]
[320526425,1711410648432,-500.0,0.00052054,120]
[320526426,1711410648442,-916.54,0.00052054,120]
[320526427,1711410648453,-704.41,0.00052054,120]
[320526428,1711410648462,-1032.8,0.00052054,120]
[320526429,1711410648472,-1000.45,0.00052054,120]
[320526430,1711410648482,-500.0,0.00052054,120]
[320526431,1711410648492,-1183.19,0.00052054,120]
[320526432,1711410648501,-908.07,0.00052054,120]
[320526433,1711410648511,-500.0,0.00052054,120]
[320526434,1711410648520,-5744.7,0.00052054,120]
[320526435,1711410648530,-1707.2,0.00052054,120]
[320526436,1711410648541,-500.0,0.00052054,120]
[320526437,1711410648552,-500.0,0.00052054,120]
[320526438,1711410648562,-500.0,0.00052054,120]
[320526439,1711410648573,-1270.35,0.00052054,120]
[320526440,1711410648584,-500.0,0.00052054,120]
[320526441,1711410648593,-1007.17,0.00052054,120]
[320526442,1711410648603,-500.0,0.00052054,120]
[320526443,1711410648613,-1389.48,0.00052054,120]
[320526444,1711410648622,-500.0,0.00052054,120]
[320526445,1711410648631,-500.0,0.00052054,120]
[320526446,1711410648640,-500.0,0.00052054,120]
[320526447,1711410648650,-1806.75,0.00052054,120]
[320526448,1711410648659,-878.84,0.00052054,120]
[320526449,1711410648670,-830.85,0.00052054,120]
[320526450,1711410648682,-500.0,0.00052054,120]
[320526451,1711410648691,-500.0,0.00052054,120]
[320526452,1711410648701,-1833.13,0.00052054,120]
[320526453,1711410648710,-755.61,0.00052054,120]
[320526454,1711410648719,-500.0,0.00052054,120]
[320526455,1711410648729,-1764.09,0.00052054,120]
[320526456,1711410648738,-834.62,0.00052054,120]
[320526457,1711410648747,-811.86,0.00052054,120]
[320526458,1711410648756,-2141.74,0.00052054,120]
[320526459,1711410648766,-760.87,0.00052054,120]
[320526460,1711410648775,-1164.47,0.00052054,120]
[320526461,1711410648797,-2364.19,0.00052054,120]
[320526462,1711410648814,-925.84,0.00052054,120]
[320526463,1711410648823,-1131.53,0.00052054,120]
[320526464,1711410648832,-500.0,0.00052054,120]
[320526465,1711410648842,-500.0,0.00052054,120]
[320526466,1711410648851,-2420.88,0.00052054,120]
[320526467,1711410648861,-500.0,0.00052054,120]
[320526468,1711410648870,-500.0,0.00052054,120]
[320526469,1711410648879,-663.78,0.00052054,120]
[320526470,1711410648888,-2420.16,0.00052054,120]
[320526471,1711410648898,-500.0,0.00052054,120]
[320526472,1711410648909,-500.0,0.00052054,120]
[320526473,1711410648919,-500.0,0.00052054,120]
[320526474,1711410648929,-1306.28,0.00052054,120]
[320526475,1711410648938,-500.0,0.00052054,120]
[320526476,1711410648947,-500.0,0.00052054,120]
[320526477,1711410648957,-4071.39,0.00052054,120]
[320526478,1711410648966,-1353.63,0.00052054,120]
[320526479,1711410648975,-500.0,0.00052054,120]
[320526480,1711410648984,-1910.96,0.00052054,120]
[320526481,1711410648993,-500.0,0.00052054,120]
[320526482,1711410649002,-1230.53,0.00052054,120]
[320526483,1711410649011,-500.0,0.00052054,120]
[320526484,1711410649021,-500.0,0.00052054,120]
[320526485,1711410649032,-500.0,0.00052054,120]
[320526486,1711410649042,-1916.25,0.00052054,120]
[320526487,1711410649053,-930.01,0.00052054,120]
[320526488,1711410649062,-5230.37,0.00052054,120]
[320526489,1711410649072,-899.28,0.00052054,120]
[320526490,1711410649081,-7843.69,0.00052054,120]
[320526491,1711410649091,-500.0,0.00052054,120]
[320526492,1711410649101,-5996.01,0.00052054,21]
[320526493,1711410649111,-500.0,0.00052054,120]
[320526494,1711410649120,-500.0,0.00052054,120]
[320526495,1711410649130,-500.0,0.00052054,120]
[320526496,1711410649140,-500.0,0.00052054,120]
[320526497,1711410649150,-500.0,0.00052054,120]
[320526498,1711410649159,-500.0,0.00052054,120]
[320526499,1711410649168,-1353.7,0.00052054,120]
[320526500,1711410649177,-804.02,0.00052054,120]
[320526501,1711410649186,-1618.95,0.00052054,120]
[320526502,1711410649195,-500.0,0.00052054,120]
[320526503,1711410649205,-500.0,0.00052054,120]
[320526504,1711410649215,-2154.39,0.00052054,120]
[320526505,1711410649224,-2938.05,0.00052054,120]
[320526506,1711410649234,-3701.68,0.00052054,120]
[320526507,1711410649243,-1094.43,0.00052054,120]
[320526508,1711410649252,-500.0,0.00052054,120]
[320526509,1711410649262,-520.24,0.00052054,120]
[320526510,1711410649272,-500.0,0.00052054,120]
[320526511,1711410649283,-552.85439312,0.00052054,120]
[320526512,1711410649292,-619.56,0.00052054,120]
[320526513,1711410649302,-500.0,0.00052054,120]
[320526514,1711410649311,-1298.69,0.00052054,120]
[320526515,1711410649320,-500.0,0.00052054,120]
[320526516,1711410649330,-4066.19,0.00052054,120]
[320526517,1711410649340,-500.0,0.00052054,120]
[320526518,1711410649350,-500.0,0.00052054,120]
[320526519,1711410649360,-500.0,0.00052054,120]
[320526520,1711410649369,-2549.84,0.00052054,120]
[320526521,1711410649379,-693.32,0.00052054,120]
[320526522,1711410649390,-1123.44,0.00052054,120]
[320526523,1711410649399,-2655.03,0.00052054,120]
[320526524,1711410649409,-500.0,0.00052054,120]
[320526525,1711410649419,-500.0,0.00052054,120]
[320526526,1711410649429,-4317.64,0.00052054,120]
[320526527,1711410649438,-2539.65,0.00052054,120]
[320526528,1711410649447,-500.0,0.00052054,120]
[320526529,1711410649459,-3332.24,0.00052054,120]
[320526530,1711410649469,-500.0,0.00052054,120]
[320526531,1711410649478,-1799.51,0.00052054,120]
[320526532,1711410649489,-1351.21,0.00052054,120]
[320526533,1711410649498,-500.0,0.00052054,120]
[320526534,1711410649508,-500.0,0.00052054,120]
[320526535,1711410649517,-771.96,0.00052054,120]
[320526536,1711410649527,-500.0,0.00052054,120]
[320526537,1711410649541,-30276.41,0.00052054,120]
[320526538,1711410649551,-500.0,0.00052054,120]
[320526539,1711410649560,-4579.89,0.00052054,120]
[320526540,1711410649570,-3769.31,0.00052054,120]
[320526541,1711410649584,-6473.49,0.00052054,120]
[320526542,1711410649593,-500.0,0.00052054,120]
[320526543,1711410649602,-500.0,0.00052054,120]
[320526544,1711410649613,-1969.83,0.00052054,120]
[320526545,1711410649624,-1987.92,0.00052054,120]
[320526546,1711410649633,-500.0,0.00052054,120]
[320526547,1711410649644,-1151.36,0.00052054,120]
[320526548,1711410649654,-500.0,0.00052054,120]
[320526549,1711410649663,-1349.5,0.00052054,120]
[320526550,1711410649673,-1948.33,0.00052054,120]
[320526551,1711410649683,-1640.35,0.00052054,120]
[320526552,1711410649692,-1238.0,0.00052054,120]
[320526553,1711410649703,-500.0,0.00052054,120]
[320526554,1711410649714,-632.75,0.00052054,120]
[320526555,1711410649725,-26331.48,0.00052054,120]
[320526556,1711410649735,-75570.23,0.00052054,120]
[320526557,1711410649745,-1331.11,0.00052054,120]
[320526558,1711410649755,-8968.99,0.00052054,120]
[320526559,1711410649765,-605.56,0.00052054,120]
[320526560,1711410649774,-500.0,0.00052054,120]
[320526561,1711410649786,-500.0,0.00052054,120]
[320526562,1711410649795,-500.0,0.00052054,120]
[320526563,1711410649804,-500.0,0.00052054,120]
[320526564,1711410649813,-500.0,0.00052054,120]
[320526565,1711410649822,-500.0,0.00052054,120]
[320526566,1711410649831,-1902.71,0.00052054,120]
[320526567,1711410649840,-504.74583126,0.00052054,120]
[320526568,1711410649850,-9166.17,0.00052054,120]
[320526569,1711410649860,-3420.01,0.00052054,120]
[320526570,1711410649869,-511.1,0.00052054,120]
[320526571,1711410649879,-500.0,0.00052054,120]
[320526572,1711410649888,-908.08,0.00052054,120]
[320526573,1711410649898,-5096.98,0.00052054,120]
[320526574,1711410649907,-500.0,0.00052054,120]
[320526575,1711410649916,-668.63,0.00052054,120]
[320526576,1711410649926,-523.12,0.00052054,120]
[320526577,1711410649937,-1436.03,0.00052054,120]
[320526578,1711410649946,-500.0,0.00052054,120]
[320526579,1711410649955,-851.04,0.00052054,120]
[320526580,1711410649966,-543.61,0.00052054,120]
[320526581,1711410649975,-5306.92,0.00052054,120]
[320526582,1711410649985,-500.0,0.00052054,120]
[320526583,1711410649994,-1130.66,0.00052054,120]
[320526584,1711410650003,-500.0,0.00052054,120]
[320526585,1711410650012,-2622.01,0.00052054,120]
[320526586,1711410650023,-8627.19,0.00052054,120]
[320526587,1711410650036,-203.89170283,0.00052054,120]
[320526588,1711410650045,-724.85,0.00052054,120]
[320526589,1711410650054,-500.0,0.00052054,120]
[320526590,1711410650063,-580.17,0.00052054,120]
[320526591,1711410650072,-500.0,0.00052054,120]
[320526592,1711410650081,-500.0,0.00052054,120]
[320526593,1711410650090,-1305.28,0.00052054,120]
[320526594,1711410650099,-500.0,0.00052054,120]
[320526595,1711410650108,-2532.71,0.00052054,120]
[320526596,1711410650117,-2943.68,0.00052054,120]
[320526597,1711410650126,-500.0,0.00052054,120]
[320526598,1711410650135,-748.04,0.00052054,120]
[320526599,1711410650144,-6153.05,0.00052054,120]
[320526600,1711410650155,-510.97,0.00052054,120]
[320526601,1711410650165,-1241.33,0.00052054,120]
[320526602,1711410650175,-2177.33,0.00052054,120]
[320526603,1711410650184,-1913.4,0.00052054,120]
[320526604,1711410650193,-500.0,0.00052054,120]
[320526605,1711410650202,-873.61,0.00052054,120]
[320526606,1711410650210,-9785.65,0.00052054,120]
[320526607,1711410650219,-595.08,0.00052054,120]
[320526608,1711410650230,-897.71,0.00052054,120]
[320526609,1711410650240,-590.27,0.00052054,120]
[320526610,1711410650250,-500.0,0.00052054,120]
[320526611,1711410650259,-500.0,0.00052054,120]
[320526612,1711410650269,-1788.51,0.00052054,120]
[320526613,1711410650279,-500.0,0.00052054,120]
[320526614,1711410650290,-672.87,0.00052054,120]
[320526615,1711410650300,-667.73,0.00052054,120]
[320526616,1711410650310,-500.0,0.00052054,120]
[320526617,1711410650322,-398.39395154,0.00052054,120]
[320526618,1711410651592,-410.59947216,0.00051998,4]
[320526619,1711410651603,-667.82971076,0.00052054,120]
[320526620,1711410651615,-832.5763377,0.00052054,120]
[320526621,1711410651626,-4807.55,0.00052054,120]
[320526622,1711410651637,-1540.73,0.00052054,120]
[320526623,1711410651647,-928.02,0.00052054,120]
[320526624,1711410651656,-500.0,0.00052054,120]
[320526625,1711410651667,-717.82,0.00052054,120]
[320526626,1711410651677,-2667.82,0.00052054,120]
[320526627,1711410651687,-1133.73,0.00052054,120]
[320526628,1711410651696,-745.74,0.00052054,120]
[320526629,1711410651705,-675.81,0.00052054,120]
[320526630,1711410651715,-647.96,0.00052054,120]
[320526631,1711410651724,-500.0,0.00052054,120]
[320526632,1711410651734,-25606.06,0.00052054,120]
[320526633,1711410651743,-500.0,0.00052054,120]
[320526634,1711410651753,-4205.17,0.00052054,120]
[320526635,1711410651763,-918.73,0.00052054,120]
[320526636,1711410651773,-1856.14,0.00052054,120]
[320526637,1711410651784,-3973.52,0.00052054,120]
[320526638,1711410651794,-3655.14,0.00052054,120]
[320526639,1711410651804,-1214.75,0.00052054,120]
[320526640,1711410651813,-2914.33,0.00052054,120]
[320526641,1711410651823,-2477.61,0.00052054,120]
[320526642,1711410651833,-654.4,0.00052054,120]
[320526643,1711410651843,-500.0,0.00052054,120]
[320526644,1711410651852,-1001.3,0.00052054,120]
[320526645,1711410651862,-2317.5,0.00052054,120]
[320526646,1711410651871,-1908.98,0.00052054,120]
[320526647,1711410651881,-2094.27,0.00052054,120]
[320526648,1711410651891,-591.01,0.00052054,120]
[320526649,1711410651900,-1085.86,0.00052054,15]
[320526650,1711410651910,-500.0,0.00052054,120]
[320526651,1711410651919,-500.0,0.00052054,120]
[320526652,1711410651929,-1540.48,0.00052054,120]
[320526653,1711410651939,-1489.22,0.00052054,120]
[320526654,1711410651948,-500.0,0.00052054,120]
[320526655,1711410651959,-771.62,0.00052054,120]
[320526656,1711410651970,-1269.8,0.00052054,120]
[320526657,1711410651981,-500.0,0.00052054,120]
[320526658,1711410651992,-199.16822459,0.00052054,120]
[320526659,1711410652004,-500.0,0.00052054,120]
[320526660,1711410652014,-1052.85,0.00052054,120]
[320526661,1711410652025,-914.8,0.00052054,120]
[320526662,1711410652039,-4904.6,0.00052054,120]
[320526663,1711410652049,-3305.17,0.00052054,120]
[320526664,1711410652059,-787.11,0.00052054,120]
[320526665,1711410652070,-553.39767648,0.00052054,120]
[320526666,1711410652104,-216.20232352,0.00052054,120]
[320526667,1711410652115,-500.0,0.00052054,120]
[320526668,1711410652127,-500.0,0.00052054,120]
[320526669,1711410652137,-1308.96,0.00052054,120]
[320526670,1711410652147,-607.4,0.00052054,120]
[320526671,1711410652158,-968.25767648,0.00052054,120]
[320526672,1711410652172,-13.18232352,0.00052054,120]
[320526673,1711410652184,-1012.69,0.00052054,120]
[320526674,1711410652196,-500.0,0.00052054,120]
[320526675,1711410652207,-500.0,0.00052054,120]
[320526676,1711410652217,-1.42879458,0.00052054,120]
[320526677,1711410652232,-2884.38120542,0.00052054,120]
[320526678,1711410652242,-55.61879458,0.00052054,120]
[320526679,1711410652254,-444.38120542,0.00052054,120]
[320526680,1711410652265,-1729.32175458,0.00052054,120]
[320526681,1711410652278,-1509.90824542,0.00052054,120]
[320526682,1711410652290,-28.38245458,0.00052054,120]
[320526683,1711410652311,-580.38754542,0.00052054,120]
[320526684,1711410652321,-1447.68,0.00052054,120]
[320526685,1711410652331,-750.28,0.00052054,120]
[320526686,1711410652341,-5171.00255463,0.00052054,120]
[320526687,1711410652380,-131.03744537,0.00052054,120]
[320526688,1711410652390,-267.36307913,0.00052054,120]
[320526689,1711410652403,-1699.49692087,0.00052054,120]
[320526690,1711410652414,-1274.4,0.00052054,120]
[320526691,1711410652425,-500.0,0.00052054,120]
[320526692,1711410652434,-2017.45,0.00052054,120]
[320526693,1711410652444,-365.15691175,0.00052054,120]
[320526694,1711410652509,-0.00266919,0.00052054,120]
[320526695,1711410653857,-491.57,0.00051222,2]
[320526696,1711410653869,-890.32325658,0.00051998,4]
[320526697,1711410653878,-41088.31331678,0.00051998,120]
[320526698,1711410653888,-2253.96041906,0.00052054,120]
[320526699,1711410653897,-2722.64,0.00052054,120]
[320526700,1711410653907,-500.0,0.00052054,120]
[320526701,1711410653916,-1162.2,0.00052054,120]
[320526702,1711410653925,-1373.4,0.00052054,120]
[320526703,1711410653934,-1358.27,0.00052054,120]
[320526704,1711410653943,-3398.76,0.00052054,120]
[320526705,1711410653952,-595.74,0.00052054,120]
[320526706,1711410653962,-523.77,0.00052054,120]
[320526707,1711410653971,-3399.93,0.00052054,120]
[320526708,1711410653980,-3013.1,0.00052054,120]
[320526709,1711410653989,-3459.55,0.00052054,120]
[320526710,1711410653999,-500.0,0.00052054,120]
[320526711,1711410654008,-500.0,0.00052054,120]
[320526712,1711410654018,-506.04,0.00052054,120]
[320526713,1711410654027,-500.0,0.00052054,120]
[320526714,1711410654038,-500.0,0.00052054,120]
[320526715,1711410654047,-1757.29,0.00052054,120]
[320526716,1711410654056,-500.0,0.00052054,120]
[320526717,1711410654065,-5769.2,0.00052054,120]
[320526718,1711410654075,-1593.14,0.00052054,120]
[320526719,1711410654084,-1702.19,0.00052054,120]
[320526720,1711410654093,-9756.32,0.00052054,120]
[320526721,1711410654102,-718.25,0.00052054,120]
[320526722,1711410654112,-1091.08,0.00052054,120]
[320526723,1711410654121,-740.95,0.00052054,120]
[320526724,1711410654130,-500.0,0.00052054,120]
[320526725,1711410654139,-3780.0,0.00052054,120]
[320526726,1711410654148,-539.79,0.00052054,120]
[320526727,1711410654157,-1456.1,0.00052054,120]
[320526728,1711410654167,-500.0,0.00052054,120]
[320526729,1711410654176,-1153.36,0.00052054,120]
[320526730,1711410654185,-500.0,0.00052054,120]
[320526731,1711410654195,-1955.3,0.00052054,120]
[320526732,1711410654205,-500.0,0.00052054,120]
[320526733,1711410654214,-3859.77,0.00052054,120]
[320526734,1711410654224,-3342.01,0.00052054,120]
[320526735,1711410654233,-1012.02,0.00052054,120]
[320526736,1711410654243,-503.14857203,0.00052054,120]
[320526737,1711410654253,-773.56,0.00052054,120]
[320526738,1711410654262,-674.23,0.00052054,120]
[320526739,1711410654272,-4766.2,0.00052054,120]
[320526740,1711410654282,-1521.65,0.00052054,120]
[320526741,1711410654292,-500.0,0.00052054,120]
[320526742,1711410654302,-500.0,0.00052054,120]
[320526743,1711410654311,-4645.94,0.00052054,120]
[320526744,1711410654320,-500.0,0.00052054,120]
[320526745,1711410654330,-500.0,0.00052054,120]
[320526746,1711410654339,-2161.19142917,0.00052054,120]
[320526747,1711410654356,-2278.84857083,0.00052054,120]
[320526748,1711410654365,-673.05,0.00052054,120]
[320526749,1711410654375,-548.15142917,0.00052054,120]
[320526750,1711410654398,-547.44,0.00052054,120]
[320526751,1711410654421,-2285.24857083,0.00052054,120]
[320526752,1711410654430,-1235.6,0.00052054,120]
[320526753,1711410654440,-961.02,0.00052054,120]
[320526754,1711410654449,-977.73,0.00052054,120]
[320526755,1711410654458,-3230.65,0.00052054,120]
[320526756,1711410654467,-1535.15,0.00052054,120]
[320526757,1711410654476,-648.84,0.00052054,120]
[320526758,1711410654485,-500.0,0.00052054,120]
[320526759,1711410654494,-2476.64,0.00052054,120]
[320526760,1711410654503,-500.0,0.00052054,120]
[320526761,1711410654512,-2822.26,0.00052054,120]
[320526762,1711410654522,-677.43,0.00052054,120]
[320526763,1711410654531,-567.05,0.00052054,120]
[320526764,1711410654542,-4168.23,0.00052054,120]
[320526765,1711410654551,-500.0,0.00052054,120]
[320526766,1711410654561,-1136.5,0.00052054,120]
[320526767,1711410654570,-1814.4,0.00052054,120]
[320526768,1711410654581,-706.07,0.00052054,120]
[320526769,1711410654592,-3894.31,0.00052054,120]
[320526770,1711410654601,-1723.6,0.00052054,120]
[320526771,1711410654610,-591.49,0.00052054,120]
[320526772,1711410654619,-2955.42,0.00052054,120]
[320526773,1711410654629,-500.0,0.00052054,120]
[320526774,1711410654638,-500.0,0.00052054,120]
[320526775,1711410654648,-500.0,0.00052054,120]
[320526776,1711410654658,-7143.56,0.00052054,120]
[320526777,1711410654667,-500.0,0.00052054,120]
[320526778,1711410654677,-1115.64,0.00052054,120]
[320526779,1711410654686,-1455.25,0.00052054,120]
[320526780,1711410654695,-1048.8,0.00052054,120]
[320526781,1711410654704,-500.0,0.00052054,120]
[320526782,1711410654714,-500.0,0.00052054,120]
[320526783,1711410654722,-5726.65,0.00052054,120]
[320526784,1711410654732,-2909.84,0.00052054,120]
[320526785,1711410654741,-3357.05,0.00052054,120]
[320526786,1711410654751,-500.0,0.00052054,120]
[320526787,1711410654760,-6393.72175399,0.00052054,120]
[320526789,1711410694411,949.02694467,0.00022,2]
[320526790,1711410729141,869.56063877,0.0003129,30]
[320526791,1711410744545,194.64412692,0.00021286,2]
[320526792,1711410760373,223.06395226,0.0002211,2]
[320526793,1711410777197,7694.13729751,0.00022,2]
[320526794,1711410780902,12716.93613938,0.0001798,2]
[320526795,1711410790557,251177.39613642,0.00023198,2]
[320526798,1711410856533,154.999998,0.00022,2]
[320526799,1711410859172,20857.879999,0.0002,2]
[320526800,1711410871811,821.17075986,0.0003129,30]
[320526801,1711410935850,155.0,0.00025,2]
[320526802,1711410984172,860.36301045,0.00025,4]
[320526803,1711410998172,860.36301045,0.00025,4]
[320526804,1711411024183,860.36301045,0.00025,4]
[320526805,1711411025108,-2345.35254533,0.00025109,2]
[320526806,1711411046179,424.77108886,0.00025,4]
[320526807,1711411082035,-2615.609999,0.0002511,2]